bitfinex/quotes_ETHUSD_20251119
["timestamp","ask_amount","ask_price","bid_price","bid_amount"]
[1763572562118,0.405504,2929.8,2927.3,0.4329]
[1763572562319,1.31249664,2929.3,2926.7,0.001]
[1763572562562,0.405504,2929.1,2926.9,3.41655467]
[1763572562718,0.405504,2928.9,2926.7,3.41773881]
[1763572562923,7.12776925,2928.9,2926.7,0.001]
[1763572563242,0.1867,2926.8,2926.7,0.001]
[1763572563654,0.6379,2926.8,2926.7,0.001]
[1763572564155,0.1867,2927.2,2926.7,0.001]
[1763572564658,0.4512,2927.1,2926.4,0.001]
[1763572564859,0.1867,2926.5,2926.4,0.001]
[1763572565060,0.6379,2926.5,2924.7,3.41914899]
[1763572565225,0.6379,2926.5,2924.9,0.4920649]
[1763572565556,0.4512,2926.4,2924.9,1.83395754]
[1763572565936,0.4512,2926.4,2925.0,0.90699264]
[1763572566139,0.4512,2926.4,2924.9,3.99031889]
[1763572566460,0.4512,2926.4,2924.9,0.5714]
[1763572566659,0.4512,2926.4,2924.9,1.47839264]
[1763572566862,0.1867,2927.2,2925.1,6.72226525]
[1763572566863,0.4512,2926.9,2925.1,6.72226525]
[1763572567022,0.1867,2926.7,2925.2,1.12463933]
[1763572567220,0.1867,2926.7,2925.4,0.405504]
[1763572567421,0.1867,2927.2,2925.6,6.72226525]
[1763572567621,0.1867,2928.2,2926.4,0.405504]
[1763572567622,0.1867,2927.6,2926.4,0.405504]
[1763572567823,0.6771,2928.2,2926.7,1.31249664]
[1763572568077,0.6771,2928.2,2926.8,0.4560033]
[1763572568240,0.4904,2928.1,2926.8,0.4560033]
[1763572568947,0.1867,2929.7,2926.9,0.840404]
[1763572568948,0.1887,2928.5,2926.9,0.840404]
[1763572569484,0.1887,2928.9,2927.7,0.90699264]
[1763572569839,0.1887,2928.9,2926.4,0.001]
[1763572569840,0.002,2928.2,2926.8,4.27816469]
[1763572570167,0.002,2928.2,2928.1,7.62925789]
[1763572570373,0.1887,2930.0,2928.8,0.90699264]
[1763572570618,0.1887,2930.0,2928.3,1.31249664]
[1763572570768,0.4904,2929.9,2928.3,0.90699264]
[1763572570965,0.002,2928.8,2928.3,0.90699264]
[1763572571292,0.002,2928.8,2928.4,1.58772616]
[1763572571828,0.002,2928.8,2928.7,0.90699264]
[1763572572725,0.002,2928.8,2928.7,1.74739664]
[1763572573553,0.1887,2931.6,2928.8,0.90699264]
[1763572573757,0.4904,2931.0,2929.8,0.90699264]
[1763572574189,0.6791,2931.6,2929.9,0.99921647]
[1763572574610,0.4904,2931.5,2929.9,0.99921647]
[1763572574953,0.4904,2931.5,2929.9,0.56431647]
[1763572575177,0.4904,2931.5,2929.9,0.1365]
[1763572575392,0.4904,2931.5,2929.5,0.1365]
[1763572575622,0.4904,2931.5,2929.3,0.90699264]
[1763572575834,0.4904,2931.5,2928.7,0.840404]
[1763572575835,0.405504,2931.2,2928.7,6.72226525]
[1763572576217,0.405504,2931.0,2928.7,6.72226525]
[1763572576434,0.405504,2931.0,2928.8,1.57921917]
[1763572576621,0.88127122,2932.4,2928.8,1.57921917]
[1763572576622,0.4904,2930.9,2928.9,0.405504]
[1763572576927,0.4904,2930.9,2928.9,0.4349]
[1763572578188,0.4904,2930.9,2928.9,4.75612296]
[1763572578405,0.4904,2930.9,2928.8,0.67222653]
[1763572578406,0.4904,2930.9,2928.8,1.57921917]
[1763572578624,0.405504,2930.8,2928.3,6.72226525]
[1763572579001,0.405504,2930.6,2928.3,6.72226525]
[1763572579196,0.405504,2930.6,2928.0,4.09052161]
[1763572579197,1.31249664,2930.4,2927.8,0.1346]
[1763572579740,0.6791,2930.3,2928.1,6.72226525]
[1763572580226,0.6791,2930.3,2928.2,1.34189264]
[1763572580227,0.4904,2930.2,2928.2,1.34189264]
[1763572580389,0.4904,2930.2,2928.3,0.80641579]
[1763572580591,0.405504,2930.1,2927.8,0.1346]
[1763572580802,0.405504,2930.1,2927.9,0.90699264]
[1763572581025,0.405504,2929.9,2927.9,0.90699264]
[1763572581232,0.4904,2930.0,2928.1,6.72226525]
[1763572581432,0.4904,2929.9,2928.2,0.90699264]
[1763572581729,0.4904,2929.9,2928.4,3.41483403]
[1763572581893,0.4904,2929.9,2928.5,0.90699264]
[1763572582094,0.4904,2929.9,2928.7,0.90699264]
[1763572582294,0.1887,2930.3,2929.2,0.90699264]
[1763572582923,0.4904,2931.2,2929.7,0.90699264]
[1763572583144,0.4904,2931.2,2929.7,1.31920548]
[1763572583435,0.4904,2931.2,2929.8,0.1638]
[1763572583641,0.1887,2931.6,2930.2,0.90699264]
[1763572583789,0.1887,2931.6,2930.4,0.90699264]
[1763572584101,0.6791,2931.9,2930.6,6.72226525]
[1763572584302,0.1887,2932.2,2930.7,0.90699264]
[1763572584519,0.1887,2932.2,2930.7,1.34189264]
[1763572584731,0.1887,2932.2,2930.8,0.4349]
[1763572585724,0.4585,2932.2,2931.2,0.90699264]
[1763572586300,0.4585,2932.2,2930.8,0.4349]
[1763572586503,0.4585,2932.2,2930.7,0.90699264]
[1763572586704,0.4585,2932.6,2931.3,0.90699264]
[1763572587019,0.002,2932.8,2931.3,0.90699264]
[1763572587199,0.002,2932.8,2931.4,0.4349]
[1763572588101,0.4585,2932.7,2931.3,0.90699264]
[1763572588340,0.002,2931.5,2931.3,0.90699264]
[1763572588498,0.002,2931.5,2930.4,0.4349]
[1763572588846,0.002,2931.5,2930.5,0.86586653]
[1763572588994,0.6537,2931.4,2929.8,0.1638]
[1763572589193,0.405504,2931.3,2929.4,0.1638]
[1763572589428,0.864004,2931.3,2928.6,6.72226525]
[1763572589806,0.405504,2931.1,2928.6,6.72226525]
[1763572590017,0.405504,2931.1,2928.7,0.90699264]
[1763572590218,0.4585,2931.0,2929.2,0.90699264]
[1763572590542,0.4585,2931.0,2928.6,6.82918131]
[1763572590543,0.405504,2930.9,2928.6,6.72226525]
[1763572590831,1.31249664,2930.9,2927.8,6.85786525]
[1763572591135,1.31249664,2930.9,2928.4,0.90699264]
[1763572591136,0.405504,2930.7,2928.4,0.90699264]
[1763572591339,0.405504,2930.7,2928.5,0.79707296]
[1763572591540,0.405504,2930.5,2928.5,1.19782579]
[1763572591904,0.4585,2930.4,2928.6,0.90699264]
[1763572592128,0.4585,2930.4,2928.5,4.17759818]
[1763572592335,0.4585,2930.4,2928.6,1.31920548]
[1763572592695,0.4585,2930.4,2928.6,0.84711284]
[1763572592897,0.4585,2930.4,2928.6,1.34189264]
[1763572593102,0.4585,2930.4,2928.6,0.90699264]
[1763572593303,0.4585,2930.4,2928.9,0.90699264]
[1763572593942,0.4585,2930.4,2928.3,6.72226525]
[1763572594238,0.4585,2930.4,2927.5,0.001]
[1763572594239,0.600704,2930.3,2927.9,6.72226525]
[1763572594533,0.600704,2930.3,2928.0,1.63626917]
[1763572594697,0.405504,2930.1,2928.0,2.07116917]
[1763572594899,0.405504,2930.1,2928.1,0.4349]
[1763572595134,0.4585,2930.0,2928.1,0.4349]
[1763572596114,0.4585,2930.0,2928.3,0.90699264]
[1763572596339,0.4585,2930.0,2928.4,0.43220599]
[1763572596521,0.4585,2930.0,2928.4,0.86710599]
[1763572596705,0.4585,2930.0,2928.5,0.90699264]
[1763572596912,0.4585,2930.0,2928.5,0.4349]
[1763572598475,0.4585,2930.0,2929.0,0.05]
[1763572598957,0.1813,2929.1,2929.0,0.05]
[1763572599114,0.1813,2929.1,2927.1,0.1365]
[1763572599115,0.405504,2929.0,2927.8,0.001]
[1763572599322,0.1813,2928.0,2927.8,0.001]
[1763572599817,0.4739,2927.9,2927.8,0.001]
[1763572600013,0.405504,2927.8,2926.4,0.001]
[1763572600419,0.4739,2927.7,2926.4,0.001]
[1763572602273,0.1813,2928.0,2926.6,7.74079712]
[1763572602428,1.067856,2929.1,2927.6,0.90699264]
[1763572602429,0.1813,2928.8,2927.6,0.90699264]
[1763572602614,0.1813,2929.1,2927.7,0.4555]
[1763572603277,0.1952,2930.3,2928.1,0.90699264]
[1763572603278,0.1813,2929.9,2928.1,0.90699264]
[1763572603552,0.1813,2929.9,2927.6,0.405504]
[1763572603553,1.067856,2931.6,2929.1,0.90699264]
[1763572603714,1.067856,2931.6,2928.2,0.89515467]
[1763572603715,0.4739,2931.2,2929.6,0.90699264]
[1763572604225,0.4739,2931.2,2929.7,0.90699264]
[1763572605052,0.4739,2931.2,2928.8,0.4555]
[1763572605669,0.4739,2931.2,2928.6,0.90699264]
[1763572605968,0.4739,2931.2,2928.3,0.1846]
[1763572605969,5.391544,2931.1,2928.3,0.1846]
[1763572606143,0.405504,2930.9,2928.3,0.1846]
[1763572606350,0.405504,2930.9,2928.4,0.90699264]
[1763572606536,0.002,2930.3,2928.5,0.49619299]
[1763572606868,0.002,2930.3,2928.5,0.95169299]
[1763572607173,0.4759,2930.3,2928.6,0.4555]
[1763572607732,0.4759,2930.3,2928.9,0.90699264]
[1763572608081,0.002,2930.3,2928.9,0.90699264]
[1763572608379,0.002,2930.3,2929.1,0.90699264]
[1763572608786,0.002,2930.3,2929.2,0.4555]
[1763572609078,0.002,2930.3,2929.1,0.90699264]
[1763572609787,0.002,2930.3,2929.0,7.50721466]
[1763572609788,0.002,2930.3,2929.4,0.90699264]
[1763572610134,0.002,2930.3,2929.0,0.67894564]
[1763572610447,0.002,2930.3,2929.1,1.11113647]
[1763572610655,0.002,2930.3,2929.1,1.56663647]
[1763572610860,0.4739,2930.2,2929.1,0.20414383]
[1763572611059,0.4739,2930.2,2928.2,8.57025386]
[1763572611261,0.1813,2930.1,2928.4,0.90699264]
[1763572611796,0.1813,2930.1,2928.6,0.405504]
[1763572611942,0.1813,2930.1,2927.8,0.4555]
[1763572611943,0.4739,2930.0,2927.8,0.4555]
[1763572612142,0.4739,2930.0,2927.9,4.32239443]
[1763572612472,0.4739,2930.0,2928.0,0.47778944]
[1763572612473,0.405504,2929.9,2928.0,0.47778944]
[1763572612640,0.405504,2929.9,2927.6,4.32271048]
[1763572612840,0.4739,2929.8,2927.6,7.73847766]
[1763572613085,0.4739,2929.8,2927.6,4.77821048]
[1763572613498,0.4739,2929.8,2927.7,0.4555]
[1763572613705,0.4739,2929.8,2927.9,0.90699264]
[1763572614009,0.4739,2929.8,2928.4,0.90699264]
[1763572614804,0.1813,2930.1,2928.5,0.4555]
[1763572614969,0.1813,2930.1,2928.4,7.73664665]
[1763572614970,0.1813,2930.1,2928.4,0.90699264]
[1763572615328,0.405504,2929.9,2927.7,0.4555]
[1763572615600,0.405504,2929.9,2927.8,0.90699264]
[1763572615806,0.4739,2929.8,2927.9,0.47781041]
[1763572616003,0.4739,2929.8,2927.7,0.90699264]
[1763572616205,0.405504,2929.7,2927.1,0.4565]
[1763572616363,0.405504,2929.7,2927.2,0.001]
[1763572616364,0.405504,2929.5,2927.2,0.001]
[1763572616770,0.405504,2929.3,2927.2,0.001]
[1763572617096,0.405504,2929.1,2927.2,0.001]
[1763572617483,0.6552,2929.0,2927.2,0.43354182]
[1763572617663,0.4739,2928.9,2927.2,0.001]
[1763572617860,0.4739,2928.9,2927.3,0.90699264]
[1763572618214,0.4739,2928.9,2927.5,0.90699264]
[1763572618395,1.08829264,2930.1,2928.0,1.31249664]
[1763572618396,0.4739,2929.6,2928.0,1.31249664]
[1763572618710,0.1813,2930.1,2928.5,0.90699264]
[1763572619069,0.1813,2930.1,2928.6,0.4555]
[1763572619270,0.6552,2930.1,2928.6,0.4555]
[1763572620168,0.4739,2930.0,2928.5,0.90699264]
[1763572620399,0.4739,2930.0,2928.6,0.405504]
[1763572620595,0.1813,2930.1,2928.6,0.861004]
[1763572620814,0.002,2930.3,2928.6,0.861004]
[1763572620982,0.002,2930.3,2929.5,0.90699264]
[1763572621183,0.4739,2930.2,2927.1,0.001]
[1763572621384,0.4739,2930.2,2927.4,0.1385]
[1763572621385,0.1813,2929.1,2927.4,0.1385]
[1763572621585,0.4739,2929.0,2927.4,0.1385]
[1763572621819,0.4739,2929.0,2927.4,0.4940727]
[1763572622401,1.78698775,2930.2,2927.4,0.4940727]
[1763572622402,0.4739,2929.5,2927.9,0.90699264]
[1763572622721,0.4739,2929.4,2927.9,0.90699264]
[1763572622923,0.4739,2930.2,2928.0,0.4555]
[1763572624090,0.4239,2930.2,2928.1,0.05]
[1763572624294,0.4239,2930.2,2928.1,0.5055]
[1763572624489,0.4239,2930.2,2928.2,0.90699264]
[1763572624828,0.4239,2930.2,2928.3,0.48276647]
[1763572625036,0.4239,2930.2,2928.1,0.5055]
[1763572625037,0.405504,2930.1,2927.6,0.90699264]
[1763572625331,0.405504,2930.1,2927.5,3.41586527]
[1763572625332,5.80505264,2930.1,2927.5,0.001]
[1763572625535,0.405504,2929.8,2927.5,0.001]
[1763572625889,0.405504,2929.9,2927.5,0.001]
[1763572626214,0.405504,2929.5,2927.5,0.001]
[1763572626425,0.886556,2929.5,2927.5,0.001]
[1763572626593,1.13013264,2929.4,2927.5,0.001]
[1763572626993,0.405504,2929.2,2927.5,0.001]
[1763572627491,0.405504,2929.0,2927.5,0.001]
[1763572627935,0.6552,2929.1,2927.5,0.001]
[1763572627936,0.405504,2928.8,2927.5,0.001]
[1763572628091,0.1808,2927.6,2927.5,0.001]
[1763572628514,0.6457,2927.6,2927.5,0.001]
[1763572630219,0.1808,2927.6,2927.5,0.001]
[1763572630421,0.6457,2927.6,2927.5,0.001]
[1763572630615,0.1808,2928.0,2927.5,0.001]
[1763572631273,0.1808,2928.0,2927.2,0.001]
[1763572631274,0.4649,2927.9,2927.2,0.001]
[1763572631419,0.4649,2927.9,2924.9,8.11475386]
[1763572631420,4.011504,2927.5,2924.8,0.4738]
[1763572631622,0.405504,2927.3,2924.8,0.4738]
[1763572631930,0.405504,2927.3,2924.6,0.1836]
[1763572631931,1.11810872,2927.3,2924.6,0.1836]
[1763572632152,0.405504,2926.9,2924.6,0.1836]
[1763572632531,0.405504,2926.7,2924.6,0.1836]
[1763572632955,0.405504,2926.5,2924.6,0.1836]
[1763572633353,0.4649,2926.4,2924.6,0.1836]
[1763572633665,0.4649,2926.4,2924.7,0.90699264]
[1763572633826,0.4649,2926.4,2925.0,0.90699264]
[1763572634025,0.4649,2926.4,2925.0,1.38079264]
[1763572634224,0.4649,2926.9,2925.5,0.90699264]
[1763572634455,0.4649,2926.9,2925.4,0.90699264]
[1763572634658,0.4649,2926.9,2925.1,0.4738]
[1763572634823,0.4649,2926.9,2925.2,0.90699264]
[1763572635165,0.1808,2927.0,2925.2,0.90699264]
[1763572635166,0.1808,2927.0,2925.8,8.11475386]
[1763572635316,0.1808,2927.4,2925.9,1.54959264]
[1763572635520,0.1808,2928.0,2926.4,0.90699264]
[1763572635521,0.6457,2928.0,2926.4,0.90699264]
[1763572635789,0.1813,2929.1,2926.9,0.90699264]
[1763572635790,0.4649,2928.4,2926.9,0.90699264]
[1763572635939,0.4649,2928.4,2927.0,0.05]
[1763572636145,0.25072864,2929.4,2927.3,8.11475386]
[1763572636344,0.4649,2929.7,2928.3,0.1385]
[1763572637148,0.4649,2929.7,2928.1,0.90699264]
[1763572637149,0.4649,2929.7,2928.1,0.1385]
[1763572638346,0.405504,2929.6,2927.7,0.1685]
[1763572638977,0.4649,2929.5,2927.9,9.0217465]
[1763572639286,0.4649,2930.2,2927.9,9.0217465]
[1763572639487,0.4649,2930.2,2928.0,0.4738]
[1763572640089,0.405504,2930.1,2928.0,0.4738]
[1763572640289,0.405504,2930.1,2927.7,0.1685]
[1763572640523,0.405504,2929.9,2927.7,0.1685]
[1763572640723,0.4649,2930.0,2927.8,1.38079264]
[1763572640889,0.4649,2929.9,2928.0,0.90699264]
[1763572641424,0.4649,2929.9,2928.1,0.4738]
[1763572641920,0.4649,2929.9,2928.5,0.90699264]
[1763572642716,0.1833,2930.3,2928.5,4.32168607]
[1763572642932,0.002,2930.3,2929.5,0.90699264]
[1763572643133,0.1828,2930.3,2929.0,0.90699264]
[1763572643420,0.1828,2930.3,2929.1,0.33708197]
[1763572643421,0.002,2930.3,2929.1,0.33708197]
[1763572643621,0.002,2930.3,2929.1,0.81088197]
[1763572643831,0.002,2930.2,2930.0,0.90699264]
[1763572644130,0.002,2930.6,2930.3,0.405504]
[1763572644278,0.002,2930.6,2930.5,9.0217465]
[1763572644624,0.002,2930.9,2930.6,0.90699264]
[1763572644926,0.002,2930.9,2930.6,1.39239264]
[1763572645110,0.002,2930.8,2930.7,0.4854]
[1763572645283,0.002,2930.8,2930.7,0.890904]
[1763572645729,0.1808,2932.4,2930.8,0.890904]
[1763572646028,0.1808,2932.9,2930.8,0.890904]
[1763572646029,0.1808,2932.9,2931.3,0.90699264]
[1763572646175,0.1808,2932.9,2931.4,0.33708197]
[1763572646384,0.4629,2933.1,2931.4,0.82248197]
[1763572646627,0.4629,2933.1,2930.9,0.90699264]
[1763572646628,0.4609,2932.4,2930.9,0.90699264]
[1763572646813,0.1813,2932.7,2930.8,8.11475386]
[1763572646814,0.1813,2932.7,2931.4,0.90699264]
[1763572647210,0.4609,2932.6,2931.4,0.90699264]
[1763572647535,0.4609,2932.6,2930.9,1.39239264]
[1763572648203,0.4609,2931.7,2929.5,0.4854]
[1763572648532,0.4609,2931.7,2930.0,11.52771908]
[1763572648685,0.4609,2932.1,2930.5,8.11475386]
[1763572648887,0.4609,2932.6,2930.5,8.11475386]
[1763572649090,0.4609,2932.1,2930.6,1.39239264]
[1763572649335,0.4609,2932.1,2930.6,0.90699264]
[1763572649500,0.4609,2932.5,2931.1,0.90699264]
[1763572649821,0.4609,2932.1,2930.6,0.90699264]
[1763572650422,0.1813,2932.7,2930.7,0.4854]
[1763572650586,0.4609,2932.5,2930.8,0.90699264]
[1763572651021,0.1813,2932.7,2930.6,0.90699264]
[1763572651022,0.405504,2932.6,2930.6,0.90699264]
[1763572651187,0.4629,2931.8,2930.2,0.1836]
[1763572651584,0.4629,2931.8,2930.2,1.09059264]
[1763572652221,0.4629,2931.8,2930.2,0.1836]
[1763572652823,0.4629,2931.8,2930.2,1.09059264]
[1763572653025,0.4629,2931.8,2929.8,0.90699264]
[1763572653223,0.405504,2931.7,2929.5,0.4854]
[1763572653425,0.405504,2931.7,2929.6,0.38990315]
[1763572653588,0.405504,2931.5,2929.6,0.90699264]
[1763572653790,0.405504,2931.5,2929.5,1.39239264]
[1763572653990,0.6422,2931.4,2929.7,8.11475386]
[1763572654187,0.6422,2931.4,2929.8,1.39239264]
[1763572654630,0.6422,2931.4,2930.0,0.90699264]
[1763572654832,0.6422,2931.4,2930.1,0.43200784]
[1763572655211,0.6422,2931.4,2930.1,0.91740784]
[1763572655607,0.002,2931.8,2930.3,0.90699264]
[1763572655828,0.4629,2931.8,2930.3,0.90699264]
[1763572656011,0.405504,2931.7,2929.7,8.52025786]
[1763572656211,0.405504,2931.7,2928.0,0.001]
[1763572656212,0.405504,2931.5,2929.0,0.4854]
[1763572656423,0.405504,2931.5,2928.4,8.60015386]
[1763572656424,4.91849664,2931.1,2928.4,8.60015386]
[1763572656641,1.31249664,2930.9,2928.4,8.11475386]
[1763572656852,1.31249664,2930.9,2928.2,10.14630108]
[1763572657132,1.31249664,2930.9,2928.0,0.4864]
[1763572657133,11.64975783,2930.7,2928.0,0.4864]
[1763572657297,4.91849664,2930.5,2928.0,0.001]
[1763572657703,0.405504,2930.3,2928.0,0.001]
[1763572658117,0.405504,2930.1,2928.0,7.21166119]
[1763572658435,0.405504,2930.1,2928.1,1.21921612]
[1763572658637,0.405504,2929.9,2928.1,1.21921612]
[1763572659039,0.4885,2929.8,2928.1,2.12620876]
[1763572659242,0.405504,2929.7,2928.1,0.73981612]
[1763572659543,0.405504,2929.7,2928.1,1.64680876]
[1763572659742,0.405504,2929.5,2928.2,0.43532251]
[1763572660129,0.4568,2929.5,2928.2,0.43532251]
[1763572660753,0.4568,2929.9,2928.6,0.90699264]
[1763572661251,0.4568,2929.9,2928.2,0.43532251]
[1763572661412,0.4568,2929.9,2928.3,0.4734]
[1763572661747,0.4568,2929.9,2928.3,0.18157152]
[1763572661748,0.405504,2929.8,2928.3,0.18157152]
[1763572661948,0.405504,2929.8,2928.2,0.43532251]
[1763572662133,0.405504,2929.6,2928.0,0.001]
[1763572662653,0.90699264,2930.0,2928.0,0.001]
[1763572662654,0.405504,2929.2,2928.0,0.001]
[1763572663151,0.19,2929.3,2928.0,0.001]
[1763572663152,0.19,2928.1,2928.0,0.001]
[1763572663646,0.6468,2928.1,2928.0,0.001]
[1763572664217,0.19,2928.1,2928.0,0.001]
[1763572664522,0.4568,2928.5,2928.0,0.001]
[1763572665454,0.19,2928.7,2928.0,0.001]
[1763572665613,0.19,2929.3,2928.0,0.001]
[1763572665614,0.4568,2929.0,2928.0,0.001]
[1763572666113,0.19,2929.3,2928.0,0.001]
[1763572666319,0.4568,2929.2,2928.0,0.001]
[1763572667665,3.606,2929.1,2928.0,0.001]
[1763572667820,0.42528,2929.1,2928.0,0.001]
[1763572668150,0.19,2929.3,2928.0,0.001]
[1763572668151,0.862304,2929.0,2928.0,0.001]
[1763572668365,0.4568,2929.0,2928.0,0.001]
[1763572672350,0.405504,2928.7,2928.0,0.001]
[1763572672552,0.405504,2928.7,2927.5,0.001]
[1763572672553,0.405504,2927.8,2927.5,0.001]
[1763572672978,0.4568,2927.7,2927.5,0.001]
[1763572673186,0.4568,2927.7,2925.7,0.4734]
[1763572673187,0.405504,2927.6,2925.7,0.4734]
[1763572673389,0.405504,2927.6,2925.8,1.21074612]
[1763572673571,0.4568,2927.5,2925.8,1.21074612]
[1763572673743,0.4568,2927.5,2925.9,0.4734]
[1763572674464,0.4568,2927.5,2926.2,0.90699264]
[1763572674640,0.4568,2927.5,2926.3,0.43779251]
[1763572675243,1.31249664,2927.4,2925.3,0.1019]
[1763572675477,4.91849664,2927.4,2925.3,0.1019]
[1763572675679,0.4568,2927.3,2925.4,0.4734]
[1763572675860,0.4568,2927.3,2925.4,1.38039264]
[1763572675861,0.405504,2927.2,2925.4,1.38039264]
[1763572676180,0.405504,2927.2,2925.5,0.82135538]
[1763572676368,0.405504,2927.0,2925.5,0.82135538]
[1763572676570,0.405504,2927.0,2924.9,0.1865]
[1763572676885,0.4568,2926.9,2924.9,1.09349264]
[1763572677468,0.405504,2926.8,2924.9,1.56689264]
[1763572677791,0.4568,2926.9,2925.4,0.90699264]
[1763572678292,0.4568,2926.9,2925.5,0.90699264]
[1763572678505,0.4568,2926.9,2925.6,0.81116538]
[1763572678800,0.4568,2926.9,2925.3,0.90699264]
[1763572678969,0.405504,2926.8,2924.4,6.74488737]
[1763572679169,0.405504,2926.8,2924.9,6.73126119]
[1763572679396,0.90699264,2927.5,2924.9,6.73126119]
[1763572679397,0.405504,2926.6,2925.0,0.90699264]
[1763572679597,0.405504,2926.6,2925.1,0.76382538]
[1763572679760,0.90699264,2927.4,2925.1,0.76382538]
[1763572679761,0.4568,2926.5,2925.1,0.76382538]
[1763572680093,0.405504,2926.4,2925.0,0.1865]
[1763572680395,0.405504,2926.4,2924.9,0.001]
[1763572680595,0.405504,2926.2,2924.9,0.001]
[1763572680772,0.405504,2926.2,2925.0,0.1865]
[1763572680972,0.4568,2926.1,2925.0,0.1865]
[1763572681298,0.4568,2926.1,2925.1,0.22068686]
[1763572681593,0.4568,2926.1,2925.1,0.1865]
[1763572681762,0.4568,2926.6,2925.1,0.6599]
[1763572682267,0.6468,2926.5,2925.1,0.1865]
[1763572682657,0.862304,2926.4,2924.9,0.001]
[1763572683099,0.4568,2926.3,2924.9,0.001]
[1763572683305,0.4568,2926.3,2925.0,0.4734]
[1763572683595,0.4568,2926.3,2924.9,0.001]
[1763572683596,0.4568,2926.3,2924.9,0.4744]
[1763572683796,0.405504,2926.2,2924.9,0.001]
[1763572684303,0.4568,2926.1,2924.9,0.001]
[1763572684486,0.19,2926.5,2925.1,0.90699264]
[1763572684692,0.19,2926.5,2925.2,0.81116538]
[1763572684897,0.19,2926.5,2925.2,0.99766538]
[1763572685085,0.6468,2926.5,2925.2,1.47106538]
[1763572686107,0.4568,2926.9,2925.6,0.90699264]
[1763572686282,0.4568,2926.9,2925.3,0.4734]
[1763572686483,0.4568,2926.9,2925.4,0.2378058]
[1763572686870,7.61781719,2927.8,2925.4,0.2378058]
[1763572686871,0.4568,2927.4,2925.7,0.90699264]
[1763572687072,0.19,2927.9,2926.3,0.90699264]
[1763572687272,0.19,2927.9,2926.4,0.5753]
[1763572687669,0.6657,2927.9,2926.4,0.5753]
[1763572688468,0.71052709,2928.5,2926.4,0.5753]
[1763572688679,0.4757,2928.5,2927.3,0.90699264]
[1763572688875,0.4777,2929.0,2927.4,0.76382538]
[1763572689090,0.4777,2929.0,2927.4,0.86572538]
[1763572689824,0.4777,2929.0,2926.9,0.1019]
[1763572689971,4.011504,2928.5,2925.9,0.488]
[1763572690174,0.405504,2928.3,2925.9,0.488]
[1763572690377,1.11662513,2928.3,2925.9,0.488]
[1763572690577,0.4757,2928.2,2925.9,0.90699264]
[1763572690807,0.81428738,2928.2,2926.5,0.488]
[1763572691018,0.1982,2928.1,2926.5,0.488]
[1763572691226,0.6739,2928.1,2926.5,0.488]
[1763572691428,0.405504,2928.0,2926.4,0.1019]
[1763572691581,0.881204,2928.0,2925.9,0.90699264]
[1763572691778,0.881204,2928.0,2925.9,1.39499264]
[1763572692125,0.65481039,2927.9,2926.4,0.90699264]
[1763572692494,0.881204,2927.8,2926.2,0.1019]
[1763572692697,0.17911039,2927.9,2926.3,0.488]
[1763572692898,0.4757,2927.8,2926.2,0.1019]
[1763572693122,0.4757,2927.8,2926.2,0.5899]
[1763572693323,0.405504,2927.7,2926.2,0.1019]
[1763572693634,0.4757,2927.8,2926.3,0.488]
[1763572694423,0.4757,2927.8,2926.2,0.1019]
[1763572694424,0.405504,2927.7,2926.2,0.1019]
[1763572694948,0.4757,2927.6,2925.7,0.488]
[1763572695114,0.4757,2927.6,2926.1,0.1019]
[1763572695702,0.4757,2927.6,2926.2,0.488]
[1763572697898,0.4757,2927.6,2926.1,0.1019]
[1763572698141,0.4777,2927.6,2926.1,0.1019]
[1763572698502,0.4777,2927.6,2926.6,0.90699264]
[1763572698503,0.002,2927.6,2926.6,0.90699264]
[1763572698813,0.002,2927.6,2927.5,0.1836]
[1763572699348,0.002,2927.6,2927.5,0.6716]
[1763572699512,0.002,2927.6,2927.5,0.1836]
[1763572699753,0.002,2927.6,2926.9,0.1836]
[1763572700671,0.002,2927.6,2926.5,0.488]
[1763572701185,0.002,2927.6,2926.5,8.12625383]
[1763572701387,0.002,2927.6,2927.5,0.1836]
[1763572701763,0.002,2927.6,2927.5,0.6716]
[1763572702076,0.002,2927.6,2927.5,0.1836]
[1763572702272,0.002,2927.6,2927.5,0.6716]
[1763572702844,0.002,2927.6,2927.1,0.90699264]
[1763572702845,0.002,2927.6,2926.7,0.488]
[1763572703144,0.002,2927.6,2926.8,0.1836]
[1763572703986,0.002,2927.6,2926.9,0.52216584]
[1763572704175,0.002,2927.6,2926.9,0.488]
[1763572704885,0.002,2927.6,2927.2,0.90699264]
[1763572705045,0.002,2927.6,2927.2,0.76382538]
[1763572705357,0.002,2927.6,2926.8,0.1836]
[1763572705556,0.002,2927.6,2927.2,0.4614]
[1763572705978,0.002,2927.6,2926.8,0.645]
[1763572706479,0.002,2927.6,2926.8,0.1836]
[1763572706857,0.002,2927.6,2926.9,0.4614]
[1763572707869,0.002,2927.6,2926.8,0.1836]
[1763572708369,0.002,2927.6,2926.1,0.1019]
[1763572708370,0.185,2926.9,2926.1,0.1019]
[1763572708804,0.6567,2927.5,2926.1,0.1019]
[1763572709169,0.6567,2927.5,2926.1,0.5633]
[1763572709373,0.002,2927.6,2926.6,0.90699264]
[1763572709895,0.002,2927.6,2926.2,0.72945612]
[1763572709896,0.4717,2927.5,2926.2,0.72945612]
[1763572710421,0.002,2927.6,2926.2,0.72945612]
[1763572710422,0.002,2927.6,2926.6,0.90699264]
[1763572710569,0.002,2927.6,2927.4,0.1836]
[1763572711262,0.002,2927.6,2926.7,0.4614]
[1763572711263,0.002,2927.6,2926.9,0.1836]
[1763572711467,0.002,2927.6,2926.3,0.4614]
[1763572711676,0.002,2927.6,2926.7,0.90699264]